fUSD/lending_fUSD_20260601
["ID","MTS","AMOUNT","RATE_DAILY","PERIOD"]
[423590313,1780252232000,-150.0,0.00010171,2]
[423590317,1780252232000,-150.0,0.00010213,2]
[423590337,1780252232000,-390.37271931,0.00010276,2]
[423590315,1780252232000,-122.53703878,0.00010208,2]
[423590332,1780252232000,-77638.00449564,0.00010276,2]
[423590334,1780252232000,-1050.0,0.00010276,2]
[423590329,1780252232000,-300.0,0.00010275,2]
[423590321,1780252232000,-175.065,0.00010218,2]
[423590322,1780252232000,-166.619089,0.00010225,2]
[423590326,1780252232000,-1207.85238006,0.00010266,2]
[423590318,1780252232000,-1200.0,0.00010217,2]
[423590331,1780252232000,-150.0,0.00010275,2]
[423590320,1780252232000,-2103.64837695,0.00010218,2]
[423590319,1780252232000,-403.95962305,0.00010218,2]
[423590323,1780252232000,-150.0,0.00010233,2]
[423590324,1780252232000,-150.0,0.00010235,2]
[423590327,1780252232000,-300.0,0.00010275,2]
[423590316,1780252232000,-27.46296122,0.00010208,2]
[423590325,1780252232000,-150.0,0.00010258,2]
[423590328,1780252232000,-300.0,0.00010275,2]
[423590457,1780252238000,-150.0,0.00010371,2]
[423590451,1780252238000,-2872.47408313,0.0001033,2]
[423590450,1780252238000,-150.0,0.00010326,2]
[423590455,1780252238000,-150.0,0.00010356,2]
[423590446,1780252238000,-150.0,0.00010281,2]
[423590456,1780252238000,-150.0,0.00010356,2]
[423590453,1780252238000,-150.0,0.00010356,2]
[423590448,1780252238000,-150.0,0.00010303,2]
[423590454,1780252238000,-150.0,0.00010356,2]
[423590447,1780252238000,-150.0,0.00010282,2]
[423590445,1780252238000,-3459.68,0.00010278,2]
[423590444,1780252238000,-1419947.24325083,0.00010276,2]
[423590443,1780252238000,-974.37953422,0.00010276,2]
[423590468,1780252238000,-500.0,0.00010375,2]
[423590452,1780252238000,-150.0,0.00010349,2]
[423590463,1780252238000,-500.0,0.00010375,2]
[423590449,1780252238000,-209.17060647,0.0001031,2]
[423590462,1780252238000,-500.0,0.00010375,2]
[423590460,1780252238000,-500.0,0.00010375,2]
[423590475,1780252238000,-500.0,0.00010375,2]
[423590473,1780252238000,-500.0,0.00010375,2]
[423590476,1780252238000,-500.0,0.00010375,2]
[423590472,1780252238000,-500.0,0.00010375,2]
[423590477,1780252238000,-500.0,0.00010375,2]
[423590471,1780252238000,-500.0,0.00010375,2]
[423590469,1780252238000,-500.0,0.00010375,2]
[423590474,1780252238000,-500.0,0.00010375,2]
[423590466,1780252238000,-500.0,0.00010375,2]
[423590467,1780252238000,-500.0,0.00010375,2]
[423590464,1780252238000,-500.0,0.00010375,2]
[423590465,1780252238000,-500.0,0.00010375,2]
[423590458,1780252238000,-384.5874791,0.00010374,2]
[423590459,1780252238000,-500.0,0.00010375,2]
[423590470,1780252238000,-500.0,0.00010375,2]
[423590461,1780252238000,-500.0,0.00010375,2]
[423590543,1780252239000,-500.0,0.00010375,2]
[423590541,1780252239000,-500.0,0.00010375,2]
[423590539,1780252239000,-443.33656357,0.00010375,2]
[423590561,1780252239000,-500.0,0.00010375,2]
[423590559,1780252239000,-500.0,0.00010375,2]
[423590547,1780252239000,-500.0,0.00010375,2]
[423590545,1780252239000,-500.0,0.00010375,2]
[423590557,1780252239000,-500.0,0.00010375,2]
[423590555,1780252239000,-500.0,0.00010375,2]
[423590553,1780252239000,-500.0,0.00010375,2]
[423590577,1780252239000,-500.0,0.00010375,2]
[423590537,1780252239000,-500.0,0.00010375,2]
[423590575,1780252239000,-500.0,0.00010375,2]
[423590584,1780252239000,-500.0,0.00010375,2]
[423590579,1780252239000,-500.0,0.00010375,2]
[423590573,1780252239000,-500.0,0.00010375,2]
[423590567,1780252239000,-500.0,0.00010375,2]
[423590571,1780252239000,-500.0,0.00010375,2]
[423590581,1780252239000,-500.0,0.00010375,2]
[423590565,1780252239000,-500.0,0.00010375,2]
[423590569,1780252239000,-500.0,0.00010375,2]
[423590551,1780252239000,-500.0,0.00010375,2]
[423590588,1780252239000,-500.0,0.00010375,2]
[423590586,1780252239000,-500.0,0.00010375,2]
[423590590,1780252239000,-500.0,0.00010375,2]
[423590592,1780252239000,-500.0,0.00010375,2]
[423590594,1780252239000,-500.0,0.00010375,2]
[423590607,1780252239000,-1207.85238006,0.00010416,2]
[423590563,1780252239000,-500.0,0.00010375,2]
[423590549,1780252239000,-500.0,0.00010375,2]
[423590514,1780252239000,-500.0,0.00010375,2]
[423590533,1780252239000,-500.0,0.00010375,2]
[423590602,1780252239000,-24208.3,0.00010384,2]
[423590481,1780252239000,-500.0,0.00010375,2]
[423590483,1780252239000,-500.0,0.00010375,2]
[423590478,1780252239000,-500.0,0.00010375,2]
[423590479,1780252239000,-500.0,0.00010375,2]
[423590487,1780252239000,-500.0,0.00010375,2]
[423590489,1780252239000,-500.0,0.00010375,2]
[423590491,1780252239000,-500.0,0.00010375,2]
[423590493,1780252239000,-500.0,0.00010375,2]
[423590485,1780252239000,-500.0,0.00010375,2]
[423590507,1780252239000,-500.0,0.00010375,2]
[423590505,1780252239000,-500.0,0.00010375,2]
[423590495,1780252239000,-500.0,0.00010375,2]
[423590535,1780252239000,-500.0,0.00010375,2]
[423590497,1780252239000,-500.0,0.00010375,2]
[423590499,1780252239000,-500.0,0.00010375,2]
[423590500,1780252239000,-500.0,0.00010375,2]
[423590509,1780252239000,-500.0,0.00010375,2]
[423590511,1780252239000,-500.0,0.00010375,2]
[423590515,1780252239000,-500.0,0.00010375,2]
[423590519,1780252239000,-500.0,0.00010375,2]
[423590521,1780252239000,-500.0,0.00010375,2]
[423590523,1780252239000,-500.0,0.00010375,2]
[423590525,1780252239000,-500.0,0.00010375,2]
[423590517,1780252239000,-500.0,0.00010375,2]
[423590528,1780252239000,-500.0,0.00010375,2]
[423590530,1780252239000,-500.0,0.00010375,2]
[423590531,1780252239000,-500.0,0.00010375,2]
[423590502,1780252239000,-500.0,0.00010375,2]
[423590598,1780252239000,-4995.0,0.00010376,2]
[423590640,1780252239000,-200.7737024,0.00010474,2]
[423590605,1780252239000,-150.0,0.00010394,2]
[423590673,1780252239000,-150.0,0.00010603,2]
[423590675,1780252239000,-150.0,0.0001062,2]
[423590687,1780252239000,-413168.10115563,0.000107,2]
[423590689,1780252239000,-150.0,0.00010711,2]
[423590691,1780252239000,-150.0,0.00010726,2]
[423590681,1780252239000,-150.0,0.00010652,2]
[423590679,1780252239000,-500.0,0.00010649,2]
[423590683,1780252239000,-150.0,0.00010666,2]
[423590685,1780252239000,-150.0,0.00010688,2]
[423590695,1780252239000,-150.0,0.00010726,2]
[423590700,1780252239000,-150.0,0.00010756,2]
[423590702,1780252239000,-579.61422,0.00010763,2]
[423590696,1780252239000,-150.0,0.00010726,2]
[423590671,1780252239000,-150.0,0.00010598,2]
[423590714,1780252239000,-150.0,0.00010824,2]
[423590704,1780252239000,-150.0,0.00010779,2]
[423590712,1780252239000,-150.0,0.00010802,2]
[423590716,1780252239000,-150.0,0.00010847,2]
[423590706,1780252239000,-3459.68,0.00010779,2]
[423590708,1780252239000,-215.61611719,0.00010788,2]
[423590710,1780252239000,-150.0,0.000108,2]
[423590719,1780252239000,-150.0,0.00010849,2]
[423590720,1780252239000,-572.46,0.00010865,2]
[423590729,1780252239000,-150.0,0.00010892,2]
[423590723,1780252239000,-150.0,0.00010869,2]
[423590725,1780252239000,-150.0,0.00010874,2]
[423590727,1780252239000,-403.973549,0.00010877,2]
[423590600,1780252239000,-4995.0,0.00010376,2]
[423590693,1780252239000,-150.0,0.00010726,2]
[423590677,1780252239000,-150.0,0.00010643,2]
[423590698,1780252239000,-150.0,0.00010734,2]
[423590669,1780252239000,-150.0,0.00010578,2]
[423590596,1780252239000,-500.0,0.00010375,2]
[423590667,1780252239000,-150.0,0.00010575,2]
[423590609,1780252239000,-150.0,0.00010417,2]
[423590613,1780252239000,-500.0,0.00010425,2]
[423590611,1780252239000,-500.0,0.00010425,2]
[423590615,1780252239000,-500.0,0.00010425,2]
[423590617,1780252239000,-329.46570412,0.00010425,2]
[423590621,1780252239000,-500.0,0.00010425,2]
[423590623,1780252239000,-274.96236003,0.00010425,2]
[423590625,1780252239000,-150.0,0.00010426,2]
[423590619,1780252239000,-500.0,0.00010425,2]
[423590627,1780252239000,-2420910.06927765,0.00010426,2]
[423590633,1780252239000,-150.0,0.0001043,2]
[423590636,1780252239000,-150.0,0.00010439,2]
[423590629,1780252239000,-248.80811348,0.0001043,2]
[423590638,1780252239000,-150.0,0.00010462,2]
[423590652,1780252239000,-150.0,0.00010507,2]
[423590631,1780252239000,-909.04674529,0.0001043,2]
[423590648,1780252239000,-150.0,0.00010484,2]
[423590665,1780252239000,-150.0,0.00010552,2]
[423590656,1780252239000,-150.0,0.0001053,2]
[423590660,1780252239000,-150.0,0.00010541,2]
[423590659,1780252239000,-150.0,0.00010541,2]
[423590650,1780252239000,-150.0,0.00010504,2]
[423590644,1780252239000,-150.0,0.00010479,2]
[423590642,1780252239000,-2000.0,0.00010477,2]
[423590654,1780252239000,-3459.68,0.00010529,2]
[423590730,1780252239000,-8644.49975263,0.000109,2]
[423590662,1780252239000,-1229.78214246,0.00010548,2]
[423590821,1780252240000,-289.53701422,0.00011471,2]
[423590819,1780252240000,-25597.41426778,0.00011346,2]
[423590817,1780252240000,-300.0,0.00011345,2]
[423590806,1780252240000,-239.37,0.0001122,2]
[423590815,1780252240000,-300.0,0.00011345,2]
[423590803,1780252240000,-498.82,0.0001122,2]
[423590813,1780252240000,-255.0,0.00011292,2]
[423590809,1780252240000,-1680.0,0.00011239,2]
[423590808,1780252240000,-34244.00700815,0.00011228,2]
[423590801,1780252240000,-344.99,0.0001122,2]
[423590799,1780252240000,-500.0,0.00011197,2]
[423590826,1780252240000,-8644.49975259,0.00011636,2]
[423590811,1780252240000,-170.2,0.00011251,2]
[423590829,1780252240000,-2000.0,0.00011641,2]
[423590868,1780252240000,-150.0,0.00012817,2]
[423590845,1780252240000,-150.0,0.00012304,2]
[423590835,1780252240000,-40526.3,0.00012055,2]
[423590837,1780252240000,-178.24,0.00012243,2]
[423590839,1780252240000,-34244.00700815,0.00012277,2]
[423590833,1780252240000,-25597.41426778,0.00011853,2]
[423590842,1780252240000,-8644.49975259,0.00012289,2]
[423590847,1780252240000,-25597.41426778,0.00012361,2]
[423590853,1780252240000,-433.0,0.00012412,2]
[423590849,1780252240000,-1612.0,0.00012363,2]
[423590855,1780252240000,-150.0,0.00012475,2]
[423590851,1780252240000,-150.0,0.0001239,2]
[423590857,1780252240000,-150.0,0.0001256,2]
[423590797,1780252240000,-25597.41426778,0.00011099,2]
[423590831,1780252240000,-34244.00700815,0.00011753,2]
[423590795,1780252240000,-25597.41426782,0.00011099,2]
[423590732,1780252240000,-150.0,0.00010911,2]
[423590793,1780252240000,-34244.00700815,0.00011099,2]
[423590738,1780252240000,-150.0,0.00010937,2]
[423590736,1780252240000,-500.0,0.00010923,2]
[423590731,1780252240000,-150.0,0.00010911,2]
[423590734,1780252240000,-150.0,0.00010915,2]
[423590742,1780252240000,-150.0,0.0001096,2]
[423590740,1780252240000,-150.0,0.00010948,2]
[423590744,1780252240000,-150.0,0.00010973,2]
[423590755,1780252240000,-470.23,0.00010989,2]
[423590757,1780252240000,-150.0,0.00011005,2]
[423590746,1780252240000,-150.0,0.00010983,2]
[423590759,1780252240000,-150.0,0.00011022,2]
[423590761,1780252240000,-150.0,0.00011028,2]
[423590749,1780252240000,-8644.49975259,0.00010983,2]
[423590751,1780252240000,-550.97,0.00010989,2]
[423590765,1780252240000,-500.0,0.00011035,2]
[423590763,1780252240000,-3459.68,0.0001103,2]
[423590753,1780252240000,-692.83,0.00010989,2]
[423590767,1780252240000,-250.0,0.00011035,2]
[423590769,1780252240000,-150.0,0.00011051,2]
[423590771,1780252240000,-150.0,0.00011073,2]
[423590783,1780252240000,-246.1315779,0.00011096,2]
[423590781,1780252240000,-175.40945141,0.00011096,2]
[423590785,1780252240000,-300.0,0.00011098,2]
[423590789,1780252240000,-300.0,0.00011098,2]
[423590779,1780252240000,-221.00621176,0.00011096,2]
[423590773,1780252240000,-150.0,0.00011096,2]
[423590787,1780252240000,-300.0,0.00011098,2]
[423590775,1780252240000,-151.29500077,0.00011096,2]
[423590777,1780252240000,-279.98397846,0.00011096,2]
[423590791,1780252240000,-34244.00700816,0.00011099,2]
[423590870,1780252240000,-25597.41426778,0.00012869,2]
[423590874,1780252240000,-8644.49975259,0.00012941,2]
[423590859,1780252240000,-150.0,0.00012646,2]
[423590949,1780252240000,-500.0,0.00013698,2]
[423590940,1780252240000,-500.0,0.00013698,2]
[423590946,1780252240000,-500.0,0.00013698,2]
[423590950,1780252240000,-500.0,0.00013698,2]
[423590947,1780252240000,-500.0,0.00013698,2]
[423590938,1780252240000,-500.0,0.00013698,2]
[423590948,1780252240000,-500.0,0.00013698,2]
[423590943,1780252240000,-500.0,0.00013698,2]
[423590951,1780252240000,-500.0,0.00013698,2]
[423590944,1780252240000,-500.0,0.00013698,2]
[423590952,1780252240000,-500.0,0.00013698,2]
[423590955,1780252240000,-174.18899724,0.00013698,2]
[423590953,1780252240000,-500.0,0.00013698,2]
[423590936,1780252240000,-500.0,0.00013698,2]
[423590964,1780252240000,-500.0,0.00013698,2]
[423590956,1780252240000,-500.0,0.00013698,2]
[423590959,1780252240000,-500.0,0.00013698,2]
[423590958,1780252240000,-500.0,0.00013698,2]
[423590957,1780252240000,-501.20372086,0.00013698,2]
[423590960,1780252240000,-500.0,0.00013698,2]
[423590963,1780252240000,-500.0,0.00013698,2]
[423590962,1780252240000,-500.0,0.00013698,2]
[423590961,1780252240000,-500.0,0.00013698,2]
[423590966,1780252240000,-500.0,0.00013698,2]
[423590965,1780252240000,-216.73250781,0.00013698,2]
[423590967,1780252240000,-500.0,0.00013698,2]
[423590872,1780252240000,-150.0,0.00012902,2]
[423590969,1780252240000,-500.0,0.00013698,2]
[423590954,1780252240000,-500.0,0.00013698,2]
[423590934,1780252240000,-500.0,0.00013698,2]
[423590968,1780252240000,-500.0,0.00013698,2]
[423590930,1780252240000,-500.0,0.00013698,2]
[423590932,1780252240000,-486.4,0.00013698,2]
[423590866,1780252240000,-2000.0,0.00012805,2]
[423590864,1780252240000,-34244.00700815,0.00012802,2]
[423590881,1780252240000,-150.0,0.00013159,2]
[423590876,1780252240000,-150.0,0.00012988,2]
[423590879,1780252240000,-150.0,0.00013073,2]
[423590885,1780252240000,-34244.00700815,0.00013326,2]
[423590893,1780252240000,-150.0,0.000135,2]
[423590899,1780252240000,-150.0,0.00013671,2]
[423590883,1780252240000,-150.0,0.00013244,2]
[423590897,1780252240000,-8644.49975259,0.00013594,2]
[423590901,1780252240000,-500.0,0.00013698,2]
[423590895,1780252240000,-150.0,0.00013586,2]
[423590887,1780252240000,-150.0,0.00013329,2]
[423590862,1780252240000,-150.0,0.00012731,2]
[423590903,1780252240000,-500.0,0.00013698,2]
[423590891,1780252240000,-150.0,0.00013415,2]
[423590926,1780252240000,-500.0,0.00013698,2]
[423590917,1780252240000,-500.0,0.00013698,2]
[423590915,1780252240000,-500.0,0.00013698,2]
[423590922,1780252240000,-500.0,0.00013698,2]
[423590924,1780252240000,-500.0,0.00013698,2]
[423590928,1780252240000,-500.0,0.00013698,2]
[423590920,1780252240000,-500.0,0.00013698,2]
[423590911,1780252240000,-500.0,0.00013698,2]
[423590909,1780252240000,-500.0,0.00013698,2]
[423590907,1780252240000,-500.0,0.00013698,2]
[423590905,1780252240000,-500.0,0.00013698,2]
[423590889,1780252240000,-25597.41426778,0.00013377,2]
[423590913,1780252240000,-551.16841754,0.00013698,2]
[423591006,1780252241000,-550.8,0.00013698,2]
[423591008,1780252241000,-550.8,0.00013698,2]
[423591009,1780252241000,-550.8,0.00013698,2]
[423591011,1780252241000,-550.8,0.00013698,2]
[423591005,1780252241000,-550.8,0.00013698,2]
[423591007,1780252241000,-550.8,0.00013698,2]
[423591004,1780252241000,-550.8,0.00013698,2]
[423591003,1780252241000,-500.0,0.00013698,2]
[423591002,1780252241000,-500.0,0.00013698,2]
[423591012,1780252241000,-550.8,0.00013698,2]
[423591010,1780252241000,-550.8,0.00013698,2]
[423591013,1780252241000,-550.8,0.00013698,2]
[423591019,1780252241000,-550.8,0.00013698,2]
[423591015,1780252241000,-550.8,0.00013698,2]
[423591016,1780252241000,-550.8,0.00013698,2]
[423591029,1780252241000,-500.0,0.00013698,2]
[423591028,1780252241000,-500.0,0.00013698,2]
[423591020,1780252241000,-500.0,0.00013698,2]
[423591027,1780252241000,-500.0,0.00013698,2]
[423591017,1780252241000,-550.8,0.00013698,2]
[423591026,1780252241000,-500.0,0.00013698,2]
[423591022,1780252241000,-500.0,0.00013698,2]
[423591024,1780252241000,-500.0,0.00013698,2]
[423591018,1780252241000,-550.8,0.00013698,2]
[423591032,1780252241000,-500.0,0.00013698,2]
[423590996,1780252241000,-202.78843615,0.00013698,2]
[423591014,1780252241000,-550.8,0.00013698,2]
[423590995,1780252241000,-500.0,0.00013698,2]
[423590982,1780252241000,-1989.08,0.00013698,2]
[423591000,1780252241000,-500.0,0.00013698,2]
[423590976,1780252241000,-1989.08,0.00013698,2]
[423590977,1780252241000,-1989.08,0.00013698,2]
[423590971,1780252241000,-500.0,0.00013698,2]
[423590973,1780252241000,-1989.08,0.00013698,2]
[423590972,1780252241000,-1989.08,0.00013698,2]
[423590970,1780252241000,-500.0,0.00013698,2]
[423590975,1780252241000,-1989.08,0.00013698,2]
[423590974,1780252241000,-1989.08,0.00013698,2]
[423590979,1780252241000,-431.36730737,0.00013698,2]
[423590980,1780252241000,-1989.08,0.00013698,2]
[423590981,1780252241000,-1989.08,0.00013698,2]
[423590984,1780252241000,-1989.08,0.00013698,2]
[423590978,1780252241000,-500.0,0.00013698,2]
[423590983,1780252241000,-1989.08,0.00013698,2]
[423590985,1780252241000,-1989.08,0.00013698,2]
[423590988,1780252241000,-1989.08,0.00013698,2]
[423590986,1780252241000,-1989.08,0.00013698,2]
[423591031,1780252241000,-500.0,0.00013698,2]
[423590987,1780252241000,-1989.08,0.00013698,2]
[423590990,1780252241000,-500.0,0.00013698,2]
[423590989,1780252241000,-1989.08,0.00013698,2]
[423590998,1780252241000,-500.0,0.00013698,2]
[423590992,1780252241000,-500.0,0.00013698,2]
[423590991,1780252241000,-500.0,0.00013698,2]
[423590994,1780252241000,-500.0,0.00013698,2]
[423590993,1780252241000,-500.0,0.00013698,2]
[423591001,1780252241000,-500.0,0.00013698,2]
[423590997,1780252241000,-500.0,0.00013698,2]
[423591033,1780252241000,-500.0,0.00013698,2]
[423591070,1780252241000,-500.0,0.00013698,2]
[423591041,1780252241000,-500.0,0.00013698,2]
[423591079,1780252241000,-500.0,0.00013698,2]
[423591080,1780252241000,-500.0,0.00013698,2]
[423591068,1780252241000,-500.0,0.00013698,2]
[423591072,1780252241000,-500.0,0.00013698,2]
[423591071,1780252241000,-500.0,0.00013698,2]
[423591075,1780252241000,-500.0,0.00013698,2]
[423591073,1780252241000,-500.0,0.00013698,2]
[423591074,1780252241000,-500.0,0.00013698,2]
[423591076,1780252241000,-500.0,0.00013698,2]
[423591078,1780252241000,-500.0,0.00013698,2]
[423591077,1780252241000,-500.0,0.00013698,2]
[423591081,1780252241000,-500.0,0.00013698,2]
[423591069,1780252241000,-500.0,0.00013698,2]
[423591084,1780252241000,-500.0,0.00013698,2]
[423591085,1780252241000,-500.0,0.00013698,2]
[423591082,1780252241000,-500.0,0.00013698,2]
[423591092,1780252241000,-500.0,0.00013698,2]
[423591091,1780252241000,-500.0,0.00013698,2]
[423591088,1780252241000,-500.0,0.00013698,2]
[423591089,1780252241000,-500.0,0.00013698,2]
[423591086,1780252241000,-500.0,0.00013698,2]
[423591087,1780252241000,-500.0,0.00013698,2]
[423591090,1780252241000,-500.0,0.00013698,2]
[423591093,1780252241000,-500.0,0.00013698,2]
[423591095,1780252241000,-500.0,0.00013698,2]
[423591034,1780252241000,-500.0,0.00013698,2]
[423591083,1780252241000,-500.0,0.00013698,2]
[423591065,1780252241000,-500.0,0.00013698,2]
[423591094,1780252241000,-500.0,0.00013698,2]
[423591063,1780252241000,-500.0,0.00013698,2]
[423591066,1780252241000,-500.0,0.00013698,2]
[423591035,1780252241000,-500.0,0.00013698,2]
[423591039,1780252241000,-500.0,0.00013698,2]
[423591038,1780252241000,-500.0,0.00013698,2]
[423591037,1780252241000,-500.0,0.00013698,2]
[423591040,1780252241000,-500.0,0.00013698,2]
[423591043,1780252241000,-500.0,0.00013698,2]
[423591051,1780252241000,-500.0,0.00013698,2]
[423591053,1780252241000,-500.0,0.00013698,2]
[423591055,1780252241000,-500.0,0.00013698,2]
[423591054,1780252241000,-297.77646155,0.00013698,2]
[423591044,1780252241000,-500.0,0.00013698,2]
[423591045,1780252241000,-500.0,0.00013698,2]
[423591036,1780252241000,-500.0,0.00013698,2]
[423591052,1780252241000,-500.0,0.00013698,2]
[423591042,1780252241000,-245.62717302,0.00013698,2]
[423591062,1780252241000,-500.0,0.00013698,2]
[423591060,1780252241000,-500.0,0.00013698,2]
[423591058,1780252241000,-500.0,0.00013698,2]
[423591067,1780252241000,-500.0,0.00013698,2]
[423591061,1780252241000,-500.0,0.00013698,2]
[423591057,1780252241000,-500.0,0.00013698,2]
[423591046,1780252241000,-500.0,0.00013698,2]
[423591059,1780252241000,-500.0,0.00013698,2]
[423591047,1780252241000,-500.0,0.00013698,2]
[423591064,1780252241000,-500.0,0.00013698,2]
[423591048,1780252241000,-500.0,0.00013698,2]
[423591056,1780252241000,-500.0,0.00013698,2]
[423591133,1780252242000,-631.68,0.00013698,2]
[423591119,1780252242000,-631.68,0.00013698,2]
[423591126,1780252242000,-631.68,0.00013698,2]
[423591121,1780252242000,-631.68,0.00013698,2]
[423591127,1780252242000,-631.68,0.00013698,2]
[423591132,1780252242000,-631.68,0.00013698,2]
[423591130,1780252242000,-631.68,0.00013698,2]
[423591141,1780252242000,-500.0,0.00013698,2]
[423591131,1780252242000,-631.68,0.00013698,2]
[423591123,1780252242000,-631.68,0.00013698,2]
[423591125,1780252242000,-631.68,0.00013698,2]
[423591139,1780252242000,-500.0,0.00013698,2]
[423591136,1780252242000,-500.0,0.00013698,2]
[423591135,1780252242000,-500.0,0.00013698,2]
[423591138,1780252242000,-500.0,0.00013698,2]
[423591137,1780252242000,-500.0,0.00013698,2]
[423591140,1780252242000,-500.0,0.00013698,2]
[423591142,1780252242000,-500.0,0.00013698,2]
[423591144,1780252242000,-500.0,0.00013698,2]
[423591145,1780252242000,-500.0,0.00013698,2]
[423591152,1780252242000,-500.0,0.00013698,2]
[423591122,1780252242000,-631.68,0.00013698,2]
[423591146,1780252242000,-500.0,0.00013698,2]
[423591134,1780252242000,-631.68,0.00013698,2]
[423591129,1780252242000,-631.68,0.00013698,2]
[423591107,1780252242000,-500.0,0.00013698,2]
[423591120,1780252242000,-631.68,0.00013698,2]
[423591143,1780252242000,-500.0,0.00013698,2]
[423591101,1780252242000,-500.0,0.00013698,2]
[423591097,1780252242000,-500.0,0.00013698,2]
[423591098,1780252242000,-500.0,0.00013698,2]
[423591100,1780252242000,-500.0,0.00013698,2]
[423591096,1780252242000,-500.0,0.00013698,2]
[423591103,1780252242000,-500.0,0.00013698,2]
[423591099,1780252242000,-500.0,0.00013698,2]
[423591102,1780252242000,-500.0,0.00013698,2]
[423591104,1780252242000,-500.0,0.00013698,2]
[423591109,1780252242000,-500.0,0.00013698,2]
[423591124,1780252242000,-631.68,0.00013698,2]
[423591108,1780252242000,-500.0,0.00013698,2]
[423591105,1780252242000,-500.0,0.00013698,2]
[423591115,1780252242000,-500.0,0.00013698,2]
[423591116,1780252242000,-500.0,0.00013698,2]
[423591110,1780252242000,-500.0,0.00013698,2]
[423591113,1780252242000,-500.0,0.00013698,2]
[423591112,1780252242000,-500.0,0.00013698,2]
[423591111,1780252242000,-500.0,0.00013698,2]
[423591114,1780252242000,-500.0,0.00013698,2]
[423591118,1780252242000,-484.96,0.00013698,2]
[423591117,1780252242000,-174.93720831,0.00013698,2]
[423591128,1780252242000,-631.68,0.00013698,2]
[423591106,1780252242000,-500.0,0.00013698,2]
[423591148,1780252242000,-500.0,0.00013698,2]
[423591149,1780252242000,-500.0,0.00013698,2]
[423591150,1780252242000,-500.0,0.00013698,2]
[423591189,1780252242000,-1989.08,0.00014999,2]
[423591181,1780252242000,-166.66,0.00014883,2]
[423591180,1780252242000,-166.66,0.00014582,2]
[423591182,1780252242000,-25597.41426778,0.000149,2]
[423591187,1780252242000,-1989.08,0.00014999,2]
[423591185,1780252242000,-1207.85238006,0.0001499,2]
[423591184,1780252242000,-34244.00700815,0.000149,2]
[423591183,1780252242000,-8644.49975259,0.000149,2]
[423591186,1780252242000,-1989.08,0.00014999,2]
[423591188,1780252242000,-1989.08,0.00014999,2]
[423591190,1780252242000,-1989.08,0.00014999,2]
[423591178,1780252242000,-25597.41426778,0.00014392,2]
[423591191,1780252242000,-1989.08,0.00014999,2]
[423591193,1780252242000,-1989.11,0.00014999,2]
[423591194,1780252242000,-550.8,0.00014999,2]
[423591201,1780252242000,-550.88,0.00014999,2]
[423591195,1780252242000,-550.8,0.00014999,2]
[423591196,1780252242000,-550.8,0.00014999,2]
[423591197,1780252242000,-550.8,0.00014999,2]